fUST/lending_fUST_20250110
["ID","MTS","AMOUNT","RATE_DAILY","PERIOD"]
[348371413,1736475776952,555.0,0.00025,120]
[348371431,1736475799955,164.1167,0.00013973,2]
[348371433,1736476042145,-416.10994106,0.00021266,2]
[348371434,1736476042173,-609.64,0.00021978,3]
[348371435,1736476042194,-3024.50142234,0.00022,4]
[348371436,1736476042216,-63.32883027,0.00022,2]
[348371437,1736476046125,-94.67116973,0.00022,2]
[348371438,1736476046148,-1930.7403283,0.00022166,2]
[348371439,1736476046172,-164.1167,0.00022174,2]
[348371440,1736476046193,-151.2103346,0.000222,2]
[348371441,1736476050102,-498.4066654,0.000222,2]
[348371442,1736476050127,-175.72351041,0.00022252,3]
[348371444,1736476145128,-5054.0,0.00016999,2]
[348371445,1736476145150,-300.0,0.00016999,2]
[348371446,1736476145170,-34346.78340799,0.00017,7]
[348371447,1736476146116,-20500.83600028,0.00017,7]
[348371448,1736476147077,-560.22455129,0.00017,7]
[348371449,1736476155291,-420.0,0.00018567,2]
[348371450,1736476155312,-5507.43484895,0.0002,2]
[348371451,1736476155335,-230.0,0.00020279,2]
[348371452,1736476155355,-2470.6851146,0.00021,2]
[348371453,1736476155376,-2755.44210841,0.00021,2]
[348371454,1736476165232,-212.34861488,0.00021,2]
[348371523,1736476233005,-45.59767688,0.00021,2]
[348371525,1736476233016,-160.0,0.00022312,3]
[348371527,1736476233026,-151.0,0.00022622,7]
[348371529,1736476233036,-151.0,0.0002277,7]
[348371531,1736476233045,-550.53,0.00022812,3]
[348371533,1736476233055,-193.81340297,0.0002287,2]
[348371535,1736476233067,-119426.64989362,0.0002287,2]
[348371537,1736476233077,-500.98943091,0.00022873,2]
[348371540,1736476233087,-500.87056937,0.00022873,2]
[348371541,1736476233096,-500.0,0.00022873,2]
[348371544,1736476233106,-478.16331574,0.000229,2]
[348371545,1736476233115,-151.0,0.00022919,7]
[348371548,1736476233125,-160.0,0.00022995,4]
[348371549,1736476233135,-500.0,0.00022999,3]
[348371552,1736476233147,-518.34413944,0.00022999,3]
[348371553,1736476233159,-417.413,0.00023019,2]
[348371556,1736476233169,-151.0,0.00023068,7]
[348371558,1736476233179,-156.93,0.00023071,2]
[348371559,1736476233188,-550.53,0.00023086,3]
[348371561,1736476233200,-151.0,0.00023216,7]
[348371564,1736476233210,-500.0,0.00023273,2]
[348371566,1736476233220,-500.0,0.00023273,2]
[348371568,1736476233230,-500.0,0.00023273,3]
[348371570,1736476233241,-500.0,0.00023299,2]
[348371571,1736476233251,-500.0,0.00023299,3]
[348371574,1736476233261,-695.79,0.000233,2]
[348371575,1736476233270,-2000.0,0.000233,2]
[348371578,1736476233280,-70061.17944219,0.000233,2]
[348371580,1736476233290,-46175.61495516,0.000233,5]
[348371582,1736476233299,-500.0,0.00023342,2]
[348371584,1736476233309,-1200.0,0.00023342,2]
[348371586,1736476233319,-550.53,0.0002336,3]
[348371587,1736476233329,-168.645,0.00023365,3]
[348371589,1736476233339,-151.0,0.00023365,15]
[348371591,1736476233348,-151.0,0.00023365,15]
[348371593,1736476233358,-500.0,0.00023365,3]
[348371595,1736476233368,-500.0,0.00023365,3]
[348371597,1736476233378,-2005.5,0.00023365,3]
[348371599,1736476233387,-188.7631034,0.00023365,5]
[348371601,1736476233397,-11706.95614553,0.00023366,10]
[348371729,1736476238591,-230.52868554,0.00023018,2]
[348371730,1736476238602,-8955.55310871,0.00023366,10]
[348371731,1736476238716,-4170.70719266,0.00023366,10]
[348371750,1736476243784,-500.0,0.00022873,2]
[348371751,1736476243796,-500.0,0.00023273,2]
[348371752,1736476243805,-5959.56657771,0.00023366,10]
[348371755,1736476246616,-67043.82781855,0.00023366,10]
[348371760,1736476246746,-837.66197027,0.00023366,10]
[348371761,1736476246758,-626081.20463291,0.00023366,10]
[348371769,1736477071211,164.040003,0.00013973,2]
[348371770,1736477118406,-514.8040493,0.000198,2]
[348371771,1736477118437,-1308.0,0.0002,3]
[348371772,1736477118469,-1307.0,0.0002,3]
[348371773,1736477118501,-1307.0,0.0002,3]
[348371774,1736477118527,-1307.0,0.0002,3]
[348371775,1736477147141,-344.66563901,0.00021266,2]
[348371776,1736477147164,-345.52353328,0.00021266,2]
[348371777,1736477147187,-4711.560566,0.00021861,2]
[348371778,1736477147213,-300.0,0.00021999,2]
[348371779,1736477147236,-582.35870375,0.00021999,2]
[348371780,1736477226102,-2563.29536013,0.00021899,2]
[348371781,1736477226123,-3102.53253735,0.00021998,2]
[348371782,1736477234246,-64.46746265,0.00021998,2]
[348371783,1736477234267,-386.13491129,0.00021999,3]
[348371784,1736477237113,-123.27881575,0.00021999,3]
[348371785,1736477237136,-505.22254702,0.00021999,3]
[348371786,1736477237157,-133.00319164,0.00021999,3]
[348371787,1736477238082,-210.06,0.00021999,3]
[348371788,1736477244090,-159.31153872,0.00021999,3]
[348371789,1736477244110,-268.53446651,0.00021999,3]
[348371790,1736477247150,-231.46553349,0.00021999,3]
[348371791,1736477247169,-506.25614499,0.00021999,3]
[348371792,1736477247189,-504.55548237,0.00021999,3]
[348371793,1736477247208,-649.900688,0.00021999,3]
[348371794,1736477247228,-505.29591645,0.00021999,3]
[348371795,1736477247247,-9021.79395774,0.00022,2]
[348371796,1736477247267,-5376.9999923,0.00022,3]
[348371797,1736477247290,-622.546,0.000222,2]
[348371798,1736477247312,-167.602902,0.0002254,5]
[348371799,1736477247332,-164.040003,0.00022759,2]
[348371800,1736477247352,-164.38964705,0.00022768,2]
[348371801,1736477247375,-500.0,0.00022811,3]
[348371802,1736477247397,-165.76829214,0.00022867,3]
[348371803,1736477249067,461.87559827,0.000199,2]
[348371804,1736477250117,-209.08583398,0.00022867,3]
[348371805,1736477281551,365.0,0.0002,3]
[348371806,1736477281876,365.0,0.0002,3]
[348371808,1736477403141,16000.0,0.00019965,10]
[348372110,1736477439071,-23.23175933,0.00021998,2]
[348372912,1736477447100,-276.76824067,0.00021998,2]
[348372914,1736477447109,-500.0,0.00021999,3]
[348372915,1736477447119,-330.73016274,0.00021999,3]
[348372917,1736477447128,-511.03947294,0.00021999,3]
[348372919,1736477447138,-445.97485249,0.00021999,3]
[348372922,1736477447150,-179.17102139,0.00021999,3]
[348372924,1736477447160,-500.0,0.00021999,3]
[348372926,1736477447169,-500.0,0.00021999,3]
[348372928,1736477447178,-500.0,0.00021999,3]
[348372930,1736477447188,-500.0,0.00021999,3]
[348372932,1736477447197,-500.0,0.00021999,3]
[348372934,1736477447207,-500.0,0.00021999,3]
[348372936,1736477447218,-406.4356488,0.00022273,3]
[348372938,1736477447229,-502.01233523,0.00022273,3]
[348372940,1736477447239,-270.14531219,0.00022273,3]
[348372942,1736477447249,-200.31621667,0.00022273,3]
[348372944,1736477447262,-305.02661914,0.00022273,3]
[348372946,1736477447273,-500.0,0.00022273,3]
[348372948,1736477447283,-500.0,0.00022273,3]
[348372950,1736477447293,-385.33,0.00022273,3]
[348372952,1736477447302,-500.0,0.00022547,3]
[348372954,1736477447311,-500.0,0.00022547,3]
[348372956,1736477447320,-164.38964705,0.00022768,2]
[348372958,1736477447330,-500.0,0.00022867,2]
[348372960,1736477447339,-500.0,0.00022867,3]
[348372962,1736477447348,-507.05806524,0.00022867,3]
[348372963,1736477447359,-514.34007828,0.00022867,3]
[348372966,1736477447369,-500.87083937,0.00022867,3]
[348372967,1736477447378,-500.0,0.00022867,3]
[348372969,1736477447387,-502.22909347,0.00022867,3]
[348372971,1736477447397,-500.0,0.00022867,3]
[348372973,1736477447407,-500.0,0.00022867,3]
[348372975,1736477447416,-500.0,0.00022867,3]
[348372977,1736477447425,-500.0,0.00022867,3]
[348372979,1736477447435,-500.0,0.00022867,3]
[348372981,1736477447444,-500.0,0.00022867,3]
[348372983,1736477447454,-500.0,0.00022867,3]
[348372985,1736477447464,-500.0,0.00022867,3]
[348372987,1736477447474,-500.0,0.00022867,3]
[348372989,1736477447487,-310.41994023,0.00022867,3]
[348372991,1736477447497,-216.68226008,0.00022867,3]
[348372993,1736477447507,-500.0,0.00022867,3]
[348372995,1736477447516,-500.0,0.00022867,2]
[348372997,1736477447526,-631.57364907,0.00022867,2]
[348372999,1736477447536,-500.0,0.00022867,2]
[348373001,1736477447545,-203.3564712,0.00022867,2]
[348373003,1736477447556,-349.65050965,0.00022867,2]
[348373005,1736477447565,-500.0,0.00022868,3]
[348373007,1736477447576,-500.0,0.00022868,3]
[348373009,1736477447585,-500.0,0.00022868,3]
[348373011,1736477447595,-500.0,0.00022868,3]
[348373013,1736477447604,-500.0,0.00022868,3]
[348373015,1736477447614,-487.4262776,0.00022868,3]
[348373017,1736477447623,-500.0,0.00022868,3]
[348373019,1736477447632,-500.0,0.00022868,3]
[348373021,1736477447643,-500.0,0.00022868,3]
[348373023,1736477447652,-582.51416962,0.00022868,3]
[348373025,1736477447662,-500.0,0.00022868,3]
[348373027,1736477447672,-500.0,0.00022868,3]
[348373029,1736477447681,-500.0,0.00022868,3]
[348373031,1736477447691,-514.39423993,0.00022868,3]
[348373033,1736477447701,-500.0,0.00022868,3]
[348373035,1736477447711,-500.0,0.00022868,3]
[348373037,1736477447720,-500.0,0.00022868,3]
[348373039,1736477447730,-501.87273029,0.00022868,3]
[348373041,1736477447743,-500.98382395,0.00022868,3]
[348373043,1736477447752,-500.0,0.00022868,3]
[348373045,1736477447761,-500.0,0.00022868,3]
[348373047,1736477447771,-500.0,0.00022868,3]
[348373049,1736477447780,-503.08242019,0.00022868,3]
[348373051,1736477447790,-510.16,0.00022868,3]
[348373053,1736477447800,-559.94653769,0.00022868,3]
[348373055,1736477447810,-601.30939481,0.00022868,3]
[348373057,1736477447819,-503.1987744,0.00022868,3]
[348373059,1736477447829,-503.73587517,0.00022868,3]
[348373061,1736477447838,-500.0,0.00022868,3]
[348373063,1736477447848,-500.0,0.00022868,3]
[348373065,1736477447857,-500.0,0.00022868,3]
[348373067,1736477447866,-509.66314817,0.00022868,3]
[348373069,1736477447876,-500.0,0.00022868,3]
[348373071,1736477447886,-500.0,0.00022868,3]
[348373073,1736477447896,-500.0,0.00022868,3]
[348373075,1736477447906,-2141.99,0.00022868,3]
[348373076,1736477447915,-500.0,0.00022868,3]
[348373078,1736477447925,-500.0,0.00022868,3]
[348373080,1736477447935,-500.0,0.00022868,3]
[348373082,1736477447945,-511.9722353,0.00022868,3]
[348373084,1736477447956,-500.0,0.00022868,3]
[348373086,1736477447965,-576.92,0.00022999,3]
[348373088,1736477447975,-500.0,0.00023085,3]
[348373090,1736477447984,-168.453,0.00023103,2]
[348373092,1736477447994,-394.0,0.00023103,2]
[348373094,1736477448004,-500.0,0.00023141,2]
[348373096,1736477448014,-500.0,0.00023141,3]
[348373098,1736477448023,-500.0,0.00023141,3]
[348373100,1736477448033,-500.0,0.00023141,3]
[348373102,1736477448043,-500.0,0.00023141,3]
[348373104,1736477448052,-500.0,0.00023141,3]
[348373106,1736477448062,-411.77577516,0.00023141,3]
[348373108,1736477448072,-500.0,0.00023141,3]
[348373110,1736477448082,-500.0,0.00023142,3]
[348373112,1736477448091,-500.0,0.00023142,3]
[348373114,1736477448101,-500.0,0.00023142,3]
[348373116,1736477448111,-633.24,0.00023142,3]
[348373118,1736477448121,-500.0,0.00023142,3]
[348373120,1736477448131,-500.0,0.00023142,3]
[348373122,1736477448141,-500.0,0.00023142,3]
[348373124,1736477448150,-500.0,0.00023142,3]
[348373126,1736477448159,-500.0,0.00023142,3]
[348373128,1736477448168,-500.0,0.00023142,3]
[348373129,1736477448178,-500.0,0.00023142,3]
[348373131,1736477448188,-500.0,0.00023142,3]
[348373133,1736477448197,-2141.99,0.00023142,3]
[348373135,1736477448207,-500.0,0.00023146,3]
[348373137,1736477448216,-500.0,0.00023146,3]
[348373139,1736477448227,-576.92,0.00023273,3]
[348373141,1736477448236,-500.0,0.00023298,3]
[348373143,1736477448246,-500.0,0.00023298,3]
[348373145,1736477448255,-500.0,0.00023299,3]
[348373147,1736477448265,-506.14011866,0.00023299,3]
[348373149,1736477448275,-500.0,0.00023299,3]
[348373151,1736477448284,-500.0,0.00023299,3]
[348373153,1736477448294,-512.91456882,0.00023299,3]
[348373155,1736477448304,-500.0,0.00023299,3]
[348373157,1736477448315,-626.21,0.000233,2]
[348373159,1736477448324,-671.0,0.000233,2]
[348373161,1736477448333,-560.212816,0.000233,10]
[348373163,1736477448343,-1200.0,0.00023344,2]
[348373165,1736477448352,-661.66,0.00023344,2]
[348373167,1736477448362,-500.0,0.00023359,3]
[348373169,1736477448371,-153.436355,0.00023363,7]
[348373171,1736477448380,-151.0,0.00023363,7]
[348373173,1736477448389,-151.0,0.00023363,7]
[348373175,1736477448399,-151.0,0.00023363,7]
[348373177,1736477448408,-151.0,0.00023363,7]
[348373179,1736477448418,-153.466244,0.00023363,7]
[348373181,1736477448428,-151.0,0.00023364,2]
[348373183,1736477448438,-151.0,0.00023364,2]
[348373185,1736477448447,-151.0,0.00023364,2]
[348373187,1736477448457,-161.05862,0.00023364,2]
[348373189,1736477448467,-500.0,0.00023364,3]
[348373191,1736477448479,-500.0,0.00023364,3]
[348373193,1736477448489,-500.0,0.00023364,3]
[348373195,1736477448499,-500.0,0.00023364,3]
[348373197,1736477448509,-500.0,0.00023364,3]
[348373199,1736477448519,-500.0,0.00023364,3]
[348373201,1736477448528,-515.80745849,0.00023364,3]
[348373203,1736477448539,-153.46487,0.00023364,7]
[348373205,1736477448548,-500.0,0.00023364,3]
[348373207,1736477448559,-517.59396766,0.00023364,3]
[348373209,1736477448568,-161.37007988,0.00023364,2]
[348373211,1736477448578,-196.4922065,0.00023365,5]
[348373213,1736477448591,-179.034048,0.00023365,7]
[348373215,1736477448600,-157.178688,0.00023365,7]
[348373216,1736477448610,-252.751992,0.00023365,7]
[348373217,1736477448619,-159.169327,0.00023365,7]
[348373218,1736477448628,-151.0,0.00023365,7]
[348373219,1736477448637,-151.0,0.00023365,7]
[348373220,1736477448648,-160.434294,0.00023365,7]
[348373222,1736477448657,-151.0,0.00023365,7]
[348373224,1736477448667,-164.976508,0.00023365,7]
[348373226,1736477448676,-143676.84394304,0.00023365,10]
[348373915,1736477936613,163.959653,0.00013973,2]
[348373917,1736478341203,-168.453,0.00021265,2]
[348373918,1736478341223,-307.91706552,0.00021265,2]
[348373919,1736478341244,-300.0,0.00021998,2]
[348373920,1736478341264,-500.0,0.00021999,3]
[348373921,1736478341285,-376.67443358,0.00021999,7]
[348373922,1736478342467,10220.37773023,0.00025,120]
[348373923,1736478428103,-175.0,0.00021998,2]
[348373924,1736478428125,-131.77847328,0.00021999,7]
[348373925,1736478428149,-447.05227356,0.00021999,3]
[348373926,1736478437131,-52.94772644,0.00021999,3]
[348373927,1736478437153,-500.0,0.00021999,3]
[348373928,1736478437175,-500.0,0.00021999,3]
[348373929,1736478437197,-500.0,0.00021999,3]
[348373930,1736478437219,-500.0,0.00021999,3]
[348373931,1736478437241,-500.0,0.00021999,3]
[348373932,1736478437263,-348.56105116,0.00021999,3]
[348373933,1736478439224,-151.43894884,0.00021999,3]
[348373934,1736478439251,-636.9,0.00021999,3]
[348373935,1736478439277,-500.0,0.00021999,3]
[348373936,1736478439300,-500.0,0.00021999,3]
[348373937,1736478439322,-2893.0,0.00022116,2]
[348373938,1736478439343,-596.682,0.000222,2]
[348373939,1736478439364,-192.26779969,0.00022272,3]
[348373965,1736478632336,-500.0,0.00021999,3]
[348373967,1736478632346,-500.0,0.00022271,3]
[348373969,1736478632356,-347.2003535,0.00022271,3]
[348374230,1736478640283,-152.7996465,0.00022271,3]
[348374232,1736478640293,-500.0,0.00022271,3]
[348374234,1736478640303,-307.73220031,0.00022272,3]
[348374236,1736478640312,-500.0,0.00022272,3]
[348374238,1736478640321,-500.0,0.00022272,3]
[348374240,1736478640331,-500.0,0.00022272,3]
[348374242,1736478640341,-500.0,0.00022272,3]
[348374244,1736478640350,-500.0,0.00022272,3]
[348374246,1736478640360,-500.0,0.00022272,3]
[348374248,1736478640369,-500.0,0.00022272,3]
[348374251,1736478640379,-500.0,0.00022272,3]
[348374253,1736478640388,-507.88882926,0.00022272,3]
[348374255,1736478640398,-394.14209586,0.00022272,3]
[348374257,1736478640408,-500.0,0.00022272,3]
[348374259,1736478640417,-500.0,0.00022272,3]
[348374261,1736478640426,-500.0,0.00022272,3]
[348374263,1736478640435,-500.0,0.00022272,3]
[348374265,1736478640445,-167.11514807,0.00022272,3]
[348374267,1736478640454,-500.0,0.00022272,3]
[348374269,1736478640464,-500.0,0.00022272,3]
[348374271,1736478640473,-381.94217986,0.00022272,3]
[348374274,1736478640491,-118.05782014,0.00022272,3]
[348374276,1736478640501,-500.0,0.00022272,3]
[348374278,1736478640510,-500.0,0.00022272,3]
[348374280,1736478640520,-516.38372786,0.00022272,3]
[348374282,1736478640531,-500.0,0.00022272,3]
[348374284,1736478640540,-500.0,0.00022272,3]
[348374286,1736478640549,-500.0,0.00022272,3]
[348374288,1736478640559,-500.0,0.00022272,3]
[348374290,1736478640568,-500.0,0.00022272,3]
[348374292,1736478640578,-500.0,0.00022272,3]
[348374294,1736478640587,-500.0,0.00022272,3]
[348374296,1736478640596,-500.0,0.00022272,3]
[348374298,1736478640606,-500.0,0.00022272,3]
[348374300,1736478640615,-500.0,0.00022272,3]
[348374302,1736478640624,-449.19313485,0.00022272,3]
[348374304,1736478640634,-500.0,0.00022272,3]
[348374306,1736478640643,-500.0,0.00022272,3]
[348374308,1736478640652,-500.0,0.00022272,3]
[348374309,1736478640661,-343.39982763,0.00022272,7]
[348374310,1736478640670,-500.0,0.00022272,3]
[348374311,1736478640679,-500.0,0.00022272,3]
[348374312,1736478640689,-500.0,0.00022272,3]
[348374313,1736478640699,-4540.2607954,0.00022272,3]
[348374661,1736478646108,157115.0,0.00025,120]
[348374664,1736478646176,-130.2692046,0.00022272,3]
[348374665,1736478646186,-500.0,0.00022272,3]
[348374666,1736478646198,-500.0,0.00022272,3]
[348374667,1736478646210,-500.0,0.00022272,3]
[348374668,1736478646220,-502.67475658,0.00022272,3]
[348374669,1736478646230,-500.0,0.00022272,3]
[348374670,1736478646240,-500.0,0.00022272,3]
[348374671,1736478646249,-500.0,0.00022272,3]
[348374672,1736478646258,-500.0,0.00022272,3]
[348374673,1736478646268,-500.0,0.00022273,3]
[348374674,1736478646278,-500.0,0.00022273,3]
[348374675,1736478646288,-500.0,0.00022273,3]
[348374676,1736478646297,-500.0,0.00022273,3]
[348374677,1736478646307,-536.63378604,0.00022273,3]
[348374678,1736478646316,-636.9,0.00022273,3]
[348374679,1736478646326,-500.0,0.00022273,3]
[348374680,1736478646336,-500.0,0.00022273,3]
[348374681,1736478646346,-500.0,0.00022273,3]
[348374682,1736478646355,-500.0,0.00022545,2]
[348374683,1736478646365,-500.0,0.00022545,3]
[348374684,1736478646375,-500.0,0.00022545,3]
[348374685,1736478646384,-500.0,0.00022545,3]
[348374686,1736478646394,-500.0,0.00022545,3]
[348374687,1736478646404,-500.0,0.00022545,3]
[348374688,1736478646413,-500.0,0.00022545,3]
[348374689,1736478646423,-500.0,0.00022545,3]
[348374690,1736478646432,-500.0,0.00022545,3]
[348374691,1736478646442,-500.0,0.00022545,3]
[348374692,1736478646453,-500.0,0.00022545,3]
[348374693,1736478646463,-500.0,0.00022545,3]
[348374694,1736478646473,-500.0,0.00022545,3]
[348374695,1736478646482,-500.0,0.00022545,3]
[348374696,1736478646491,-500.0,0.00022545,3]
[348374697,1736478646501,-500.0,0.00022545,3]
[348374698,1736478646511,-500.0,0.00022545,3]
[348374699,1736478646521,-500.0,0.00022545,3]
[348374700,1736478646530,-500.0,0.00022546,3]
[348374701,1736478646540,-500.0,0.00022546,3]
[348374702,1736478646550,-500.0,0.00022546,3]
[348374703,1736478646559,-500.0,0.00022546,3]
[348374704,1736478646568,-500.0,0.00022546,3]
[348374705,1736478646579,-500.0,0.00022546,3]
[348374706,1736478646588,-500.0,0.00022546,3]
[348374707,1736478646598,-500.0,0.00022546,3]
[348374708,1736478646607,-506.59013872,0.00022546,3]
[348374709,1736478646617,-500.0,0.00022546,3]
[348374710,1736478646627,-500.0,0.00022546,3]
[348374711,1736478646636,-500.0,0.00022546,3]
[348374712,1736478646646,-500.0,0.00022546,3]
[348374713,1736478646655,-488.83850698,0.00022546,3]
[348374714,1736478646665,-500.0,0.00022546,3]
[348374715,1736478646674,-500.0,0.00022546,3]
[348374716,1736478646684,-500.0,0.00022546,3]
[348374717,1736478646694,-500.0,0.00022546,3]
[348374718,1736478646707,-548.58623486,0.00022546,3]
[348374719,1736478646717,-500.0,0.00022546,3]
[348374720,1736478646726,-500.0,0.00022546,3]
[348374721,1736478646736,-500.0,0.00022546,3]
[348374722,1736478646746,-519.09816454,0.00022546,3]
[348374723,1736478646756,-500.0,0.00022546,3]
[348374724,1736478646765,-500.0,0.00022546,3]
[348374725,1736478646774,-500.0,0.00022546,3]
[348374726,1736478646784,-500.0,0.00022546,3]
[348374727,1736478646793,-500.0,0.00022546,3]
[348374728,1736478646803,-500.0,0.00022546,3]
[348374729,1736478646813,-500.0,0.00022546,3]
[348374730,1736478646823,-500.0,0.00022546,3]
[348374731,1736478646833,-500.0,0.00022546,3]
[348374732,1736478646842,-500.0,0.00022546,3]
[348374733,1736478646851,-500.0,0.00022546,3]
[348374734,1736478646861,-500.0,0.00022546,3]
[348374735,1736478646870,-500.0,0.00022546,3]
[348374736,1736478646879,-4670.53,0.00022546,3]
[348374737,1736478646889,-500.0,0.00022546,3]
[348374738,1736478646898,-500.0,0.00022546,3]
[348374739,1736478646908,-500.0,0.00022546,3]
[348374740,1736478646921,-500.0,0.00022546,3]
[348374741,1736478646930,-500.0,0.00022546,3]
[348374742,1736478646939,-500.0,0.00022546,3]
[348374743,1736478646948,-500.0,0.00022546,3]
[348374744,1736478646961,-500.0,0.00022546,3]
[348374745,1736478646971,-500.0,0.00022547,3]
[348374746,1736478646980,-500.0,0.00022547,3]
[348374747,1736478646989,-500.0,0.00022547,3]
[348374748,1736478646998,-519.70176367,0.00022547,3]
[348374749,1736478647007,-636.9,0.00022547,3]
[348374750,1736478647017,-500.0,0.00022547,3]
[348374751,1736478647026,-500.0,0.00022547,3]
[348374752,1736478647035,-500.0,0.00022547,3]
[348374753,1736478647045,-160.0,0.00022653,3]
[348374754,1736478647054,-500.0,0.00022819,2]
[348374755,1736478647063,-500.0,0.00022819,3]
[348374756,1736478647072,-500.0,0.00022819,3]
[348374757,1736478647082,-500.0,0.00022819,3]
[348374758,1736478647092,-500.0,0.00022819,3]
[348374759,1736478647101,-500.0,0.00022819,3]
[348374760,1736478647110,-500.0,0.00022819,3]
[348374761,1736478647119,-500.0,0.00022819,3]
[348374762,1736478647129,-500.0,0.00022819,3]
[348374763,1736478647139,-500.0,0.00022819,3]
[348374764,1736478647148,-500.0,0.00022819,3]
[348374765,1736478647158,-500.0,0.00022819,3]
[348374766,1736478647167,-500.0,0.00022819,3]
[348374767,1736478647177,-500.0,0.00022819,3]
[348374768,1736478647187,-500.0,0.00022819,3]
[348374769,1736478647196,-500.0,0.00022819,3]
[348374770,1736478647207,-500.0,0.00022819,3]
[348374771,1736478647216,-500.0,0.00022819,3]
[348374772,1736478647226,-500.0,0.0002282,3]
[348374773,1736478647236,-500.0,0.0002282,3]
[348374774,1736478647245,-500.0,0.0002282,3]
[348374775,1736478647254,-500.0,0.0002282,3]
[348374776,1736478647264,-500.0,0.0002282,3]
[348374777,1736478647273,-500.0,0.0002282,3]
[348374778,1736478647283,-500.0,0.0002282,3]
[348374779,1736478647292,-500.0,0.0002282,3]
[348374780,1736478647301,-500.0,0.0002282,3]
[348374781,1736478647311,-500.0,0.0002282,3]
[348374782,1736478647320,-500.0,0.0002282,3]
[348374783,1736478647329,-500.0,0.0002282,3]
[348374784,1736478647339,-578.75,0.0002282,3]
[348374785,1736478647348,-500.0,0.0002282,3]
[348374786,1736478647358,-500.0,0.0002282,3]
[348374787,1736478647367,-500.0,0.0002282,3]
[348374788,1736478647376,-500.0,0.0002282,3]
[348374789,1736478647385,-510.60557796,0.0002282,3]
[348374790,1736478647395,-500.0,0.0002282,3]
[348374791,1736478647404,-500.0,0.0002282,3]
[348374792,1736478647413,-500.0,0.0002282,3]
[348374793,1736478647423,-500.0,0.0002282,3]
[348374794,1736478647433,-500.0,0.0002282,3]
[348374795,1736478647443,-500.0,0.0002282,3]
[348374796,1736478647454,-500.0,0.0002282,3]
[348374797,1736478647463,-500.0,0.0002282,3]
[348374798,1736478647472,-510.89490177,0.0002282,3]
[348374799,1736478647482,-500.0,0.0002282,3]
[348374800,1736478647492,-430.75119993,0.0002282,3]
[348374801,1736478647502,-579.61087208,0.0002282,3]
[348374802,1736478647511,-500.0,0.0002282,3]
[348374803,1736478647523,-500.0,0.0002282,3]
[348374804,1736478647532,-4670.53,0.0002282,3]
[348374805,1736478647626,-514.78683153,0.0002282,3]
[348374806,1736478647638,-500.0,0.0002282,3]
[348374807,1736478647648,-500.0,0.0002282,3]
[348374808,1736478647659,-500.0,0.0002282,3]
[348374809,1736478647670,-500.0,0.0002282,3]
[348374810,1736478647680,-500.0,0.0002282,3]
[348374811,1736478647690,-500.0,0.0002282,3]
[348374812,1736478647700,-488.12720483,0.0002282,3]
[348374813,1736478647710,-263.08546862,0.00022821,3]
[348374814,1736478647719,-636.9,0.00022821,3]
[348374815,1736478647728,-500.0,0.00022821,3]
[348374816,1736478647738,-500.0,0.00022821,3]
[348374817,1736478647747,-500.0,0.00022867,3]